fUSD/lending_fUSD_20260613
["ID","MTS","AMOUNT","RATE_DAILY","PERIOD"]
[424964865,1781358651000,-366.95,0.00027855,7]
[424964838,1781358651000,-366.95,0.00027641,2]
[424964837,1781358651000,-193.40893777,0.00027641,2]
[424964831,1781358651000,-495.69399999,0.00027593,2]
[424964833,1781358651000,-366.95,0.00027611,30]
[424964836,1781358651000,-24067.61917563,0.0002762,2]
[424964840,1781358651000,-366.95,0.00027672,7]
[424964839,1781358651000,-362.99,0.00027641,2]
[424964841,1781358651000,-362.99,0.00027672,7]
[424964862,1781358651000,-250.0,0.0002784,2]
[424964896,1781358651000,-8109.18,0.00028033,30]
[424964864,1781358651000,-250.0,0.0002784,2]
[424964894,1781358651000,-1863.76,0.00028033,30]
[424964887,1781358651000,-216.029201,0.00028,30]
[424964889,1781358651000,-366.95,0.00028007,2]
[424964890,1781358651000,-362.99,0.00028007,2]
[424964893,1781358651000,-741.05,0.00028033,30]
[424964897,1781358651000,-350.0,0.00028038,6]
[424964895,1781358651000,-8141.65,0.00028033,30]
[424964899,1781358651000,-362.99,0.00028038,7]
[424964892,1781358651000,-1807.4,0.00028033,30]
[424964908,1781358651000,-250.0,0.0002813,2]
[424964907,1781358651000,-366.99,0.0002813,7]
[424964904,1781358651000,-362.99,0.00028099,2]
[424964903,1781358651000,-366.95,0.00028099,2]
[424964902,1781358651000,-362.99,0.00028068,30]
[424964906,1781358651000,-193.40893776,0.0002813,2]
[424964900,1781358651000,-152.0,0.00028066,3]
[424964905,1781358651000,-7490.09761866,0.0002813,2]
[424964863,1781358651000,-250.0,0.0002784,2]
[424964898,1781358651000,-366.95,0.00028038,7]
[424964891,1781358651000,-724.91,0.00028033,30]
[424964901,1781358651000,-366.95,0.00028068,30]
[424964886,1781358651000,-174.06804399,0.00028,2]
[424964888,1781358651000,-216.029201,0.00028,10]
[424964869,1781358651000,-741.05,0.00027872,2]
[424964870,1781358651000,-1863.76,0.00027872,2]
[424964866,1781358651000,-362.99,0.00027855,7]
[424964867,1781358651000,-724.91,0.00027872,2]
[424964872,1781358651000,-8109.18,0.00027872,2]
[424964874,1781358651000,-362.99,0.00027885,30]
[424964876,1781358651000,-362.99,0.00027916,2]
[424964885,1781358651000,-495.69399999,0.00027984,2]
[424964871,1781358651000,-8141.65,0.00027872,2]
[424964873,1781358651000,-366.95,0.00027885,30]
[424964875,1781358651000,-366.95,0.00027916,2]
[424964878,1781358651000,-366.95,0.00027946,7]
[424964881,1781358651000,-150.0,0.00027949,7]
[424964883,1781358651000,-366.95,0.00027977,30]
[424964877,1781358651000,-152.2524368,0.00027921,2]
[424964882,1781358651000,-150.0,0.00027973,2]
[424964879,1781358651000,-362.99,0.00027946,7]
[424964884,1781358651000,-362.99,0.00027977,30]
[424964880,1781358651000,-478.91,0.00027949,2]
[424964954,1781358652000,-500.0,0.00028219,2]
[424964957,1781358652000,-500.0,0.00028219,2]
[424964947,1781358652000,-500.0,0.00028219,2]
[424964943,1781358652000,-500.0,0.00028219,2]
[424964944,1781358652000,-500.0,0.00028219,2]
[424964939,1781358652000,-500.0,0.00028219,2]
[424964942,1781358652000,-150.0,0.00028219,2]
[424964940,1781358652000,-500.0,0.00028219,2]
[424964949,1781358652000,-500.0,0.00028219,2]
[424964941,1781358652000,-500.0,0.00028219,2]
[424964937,1781358652000,-500.0,0.00028219,2]
[424964958,1781358652000,-500.0,0.00028219,2]
[424964962,1781358652000,-500.0,0.00028219,2]
[424964948,1781358652000,-500.0,0.00028219,2]
[424964950,1781358652000,-500.0,0.00028219,2]
[424964951,1781358652000,-500.0,0.00028219,2]
[424964955,1781358652000,-500.0,0.00028219,2]
[424964952,1781358652000,-500.0,0.00028219,2]
[424964956,1781358652000,-500.0,0.00028219,2]
[424964953,1781358652000,-500.0,0.00028219,2]
[424964959,1781358652000,-500.0,0.00028219,2]
[424964960,1781358652000,-500.0,0.00028219,2]
[424964969,1781358652000,-2245.3,0.00028301,7]
[424964963,1781358652000,-500.0,0.00028219,2]
[424964945,1781358652000,-500.0,0.00028219,2]
[424964946,1781358652000,-352.36890383,0.00028219,2]
[424964938,1781358652000,-500.0,0.00028219,2]
[424964921,1781358652000,-1863.76,0.00028194,7]
[424964935,1781358652000,-500.0,0.00028219,2]
[424964909,1781358652000,-250.0,0.0002813,2]
[424964911,1781358652000,-250.0,0.0002813,2]
[424964916,1781358652000,-619.63,0.00028193,7]
[424964912,1781358652000,-363.03,0.0002813,7]
[424964918,1781358652000,-724.91,0.00028194,7]
[424964915,1781358652000,-500.0,0.00028193,120]
[424964964,1781358652000,-500.0,0.00028219,2]
[424964913,1781358652000,-495.69399999,0.0002818,2]
[424964917,1781358652000,-1081.8,0.00028193,120]
[424964910,1781358652000,-250.0,0.0002813,2]
[424964914,1781358652000,-591.96,0.00028193,30]
[424964920,1781358652000,-741.05,0.00028194,7]
[424964936,1781358652000,-500.0,0.00028219,2]
[424964919,1781358652000,-1807.4,0.00028194,7]
[424964933,1781358652000,-500.0,0.00028219,2]
[424964925,1781358652000,-500.0,0.00028219,2]
[424964930,1781358652000,-500.0,0.00028219,2]
[424964922,1781358652000,-8141.65,0.00028194,7]
[424964924,1781358652000,-501.0,0.00028212,11]
[424964926,1781358652000,-500.0,0.00028219,2]
[424964927,1781358652000,-500.0,0.00028219,2]
[424964932,1781358652000,-500.0,0.00028219,2]
[424964929,1781358652000,-500.0,0.00028219,2]
[424964928,1781358652000,-500.0,0.00028219,2]
[424964931,1781358652000,-500.0,0.00028219,2]
[424964934,1781358652000,-500.0,0.00028219,2]
[424964923,1781358652000,-8109.18,0.00028194,7]
[424964965,1781358652000,-500.0,0.00028219,2]
[424964961,1781358652000,-500.0,0.00028219,2]
[424964970,1781358652000,-495.69399999,0.00028376,2]
[424965002,1781358652000,-311.7773077,0.00028607,7]
[424965006,1781358652000,-372.43741806,0.00028607,7]
[424965005,1781358652000,-395.0773581,0.00028607,7]
[424964999,1781358652000,-371.50573991,0.00028604,7]
[424964997,1781358652000,-366.14582072,0.00028604,7]
[424965000,1781358652000,-387.18439416,0.00028604,7]
[424965001,1781358652000,-308.65210071,0.00028604,7]
[424965004,1781358652000,-405.71930793,0.00028607,7]
[424965007,1781358652000,-348.64315526,0.00028607,7]
[424965008,1781358652000,-504.4609827,0.00028607,7]
[424965010,1781358652000,-557.24585349,0.00028607,7]
[424965013,1781358652000,-358.65963745,0.00028607,7]
[424965003,1781358652000,-337.32181234,0.00028607,7]
[424965014,1781358652000,-365.05251175,0.00028607,7]
[424965011,1781358652000,-313.71853697,0.00028607,7]
[424965012,1781358652000,-334.01238672,0.00028607,7]
[424965016,1781358652000,-338.30802304,0.00028607,7]
[424965015,1781358652000,-334.61455501,0.00028607,7]
[424965018,1781358652000,-241.45217659,0.00028607,7]
[424965017,1781358652000,-168.62001591,0.00028607,7]
[424965022,1781358652000,-248.28950335,0.00028607,7]
[424965021,1781358652000,-176.72664511,0.00028607,2]
[424965023,1781358652000,-247.02892797,0.00028607,5]
[424965024,1781358652000,-321.89771059,0.00028607,5]
[424964971,1781358652000,-241.44,0.00028377,2]
[424965020,1781358652000,-155.15033319,0.00028607,7]
[424965009,1781358652000,-409.78172503,0.00028607,7]
[424964998,1781358652000,-210.29100766,0.00028604,7]
[424965019,1781358652000,-333.1745396,0.00028607,7]
[424964996,1781358652000,-337.88991482,0.00028604,7]
[424964995,1781358652000,-412.4277594,0.00028604,7]
[424964967,1781358652000,-150.0,0.00028219,2]
[424964966,1781358652000,-326.09581056,0.00028219,2]
[424964973,1781358652000,-151.0,0.00028395,2]
[424964972,1781358652000,-2366.95391626,0.00028389,2]
[424964983,1781358652000,-1998.9991099,0.00028423,120]
[424964976,1781358652000,-289.64,0.00028396,2]
[424964974,1781358652000,-151.0,0.00028395,2]
[424964975,1781358652000,-151.0,0.00028395,2]
[424964979,1781358652000,-276.53951591,0.00028397,7]
[424964978,1781358652000,-174.34658342,0.00028397,7]
[424964981,1781358652000,-250.0,0.0002842,2]
[424964982,1781358652000,-250.0,0.0002842,2]
[424964968,1781358652000,-362.3,0.00028267,2]
[424964980,1781358652000,-250.0,0.0002842,2]
[424964984,1781358652000,-25060.37141633,0.00028423,120]
[424964985,1781358652000,-200.0,0.00028493,2]
[424964992,1781358652000,-350.0,0.00028562,9]
[424964988,1781358652000,-152.0,0.00028493,3]
[424964987,1781358652000,-348.40166504,0.00028493,2]
[424964993,1781358652000,-495.69,0.00028571,2]
[424964991,1781358652000,-168.5,0.00028493,2]
[424964977,1781358652000,-151.0,0.00028396,2]
[424964990,1781358652000,-297.49462527,0.00028493,3]
[424964989,1781358652000,-152.0,0.00028493,3]
[424964994,1781358652000,-320.49705455,0.00028604,7]
[424964986,1781358652000,-1000.0,0.00028493,2]
[424965064,1781358653000,-342.19283278,0.00028612,7]
[424965065,1781358653000,-303.50038031,0.00028612,2]
[424965063,1781358653000,-398.81466142,0.00028612,7]
[424965062,1781358653000,-415.83708566,0.00028612,7]
[424965056,1781358653000,-383.50489651,0.00028608,7]
[424965054,1781358653000,-344.35725336,0.00028608,7]
[424965055,1781358653000,-340.32761553,0.00028608,7]
[424965058,1781358653000,-301.12593334,0.00028608,7]
[424965059,1781358653000,-317.54022769,0.00028608,7]
[424965057,1781358653000,-310.59352665,0.00028608,7]
[424965061,1781358653000,-424.45545269,0.00028608,7]
[424965069,1781358653000,-934.0536647,0.00028627,2]
[424965067,1781358653000,-306.58749095,0.00028612,7]
[424965066,1781358653000,-376.01790611,0.00028612,7]
[424965070,1781358653000,-4335.0,0.00028697,10]
[424965068,1781358653000,-177.0,0.00028625,3]
[424965072,1781358653000,-150.0,0.00028709,2]
[424965082,1781358653000,-495.69,0.00028767,2]
[424965071,1781358653000,-314.0,0.00028697,7]
[424965083,1781358653000,-200.0,0.00028778,2]
[424965074,1781358653000,-1944.08278,0.0002871,2]
[424965076,1781358653000,-250.0,0.0002871,2]
[424965051,1781358653000,-343.74185686,0.00028608,7]
[424965073,1781358653000,-1944.08277,0.0002871,2]
[424965060,1781358653000,-301.08725553,0.00028608,7]
[424965053,1781358653000,-317.35668456,0.00028608,7]
[424965038,1781358653000,-176.51803256,0.00028607,2]
[424965052,1781358653000,-316.78606931,0.00028608,7]
[424965081,1781358653000,-185.64476922,0.00028765,2]
[424965026,1781358653000,-226.40288704,0.00028607,7]
[424965025,1781358653000,-175.98527621,0.00028607,2]
[424965027,1781358653000,-194.8392793,0.00028607,7]
[424965037,1781358653000,-306.47179602,0.00028607,7]
[424965028,1781358653000,-155.76910114,0.00028607,2]
[424965036,1781358653000,-173.73957344,0.00028607,7]
[424965030,1781358653000,-307.40553092,0.00028607,7]
[424965033,1781358653000,-322.68480592,0.00028607,7]
[424965029,1781358653000,-384.92909369,0.00028607,7]
[424965034,1781358653000,-220.57456637,0.00028607,7]
[424965031,1781358653000,-354.36932698,0.00028607,7]
[424965032,1781358653000,-383.0726542,0.00028607,7]
[424965035,1781358653000,-205.46414914,0.00028607,7]
[424965039,1781358653000,-172.84039709,0.00028607,7]
[424965041,1781358653000,-332.60961096,0.00028607,7]
[424965046,1781358653000,-324.47522067,0.00028607,7]
[424965044,1781358653000,-347.52021174,0.00028607,7]
[424965045,1781358653000,-322.1500441,0.00028607,7]
[424965047,1781358653000,-379.02524615,0.00028608,7]
[424965042,1781358653000,-234.14911254,0.00028607,7]
[424965043,1781358653000,-237.29417436,0.00028607,7]
[424965040,1781358653000,-179.29961787,0.00028607,2]
[424965048,1781358653000,-347.72425673,0.00028608,7]
[424965050,1781358653000,-368.33570596,0.00028608,7]
[424965049,1781358653000,-381.15267486,0.00028608,7]
[424965075,1781358653000,-1944.08277,0.0002871,2]
[424965131,1781358653000,-500.0,0.00029,2]
[424965077,1781358653000,-250.0,0.0002871,2]
[424965110,1781358653000,-150.0,0.00028999,2]
[424965113,1781358653000,-2500.0,0.00029,30]
[424965111,1781358653000,-1081.8,0.00028999,120]
[424965115,1781358653000,-600.0,0.00029,7]
[424965112,1781358653000,-92218.25593409,0.00029,5]
[424965114,1781358653000,-5284.3348175,0.00029,2]
[424965117,1781358653000,-2000.0,0.00029,2]
[424965120,1781358653000,-9630.69243111,0.00029,2]
[424965122,1781358653000,-4848.40818745,0.00029,2]
[424965121,1781358653000,-983.91,0.00029,2]
[424965118,1781358653000,-10000.0,0.00029,2]
[424965108,1781358653000,-500.0,0.00028999,2]
[424965119,1781358653000,-1103.2,0.00029,2]
[424965126,1781358653000,-773.76,0.00029,2]
[424965125,1781358653000,-150.0,0.00029,2]
[424965127,1781358653000,-2266.0,0.00029,2]
[424965129,1781358653000,-500.0,0.00029,2]
[424965128,1781358653000,-400.29488049,0.00029,10]
[424965130,1781358653000,-500.0,0.00029,2]
[424965134,1781358653000,-292.06270875,0.00029,2]
[424965132,1781358653000,-500.0,0.00029,2]
[424965133,1781358653000,-337.05,0.00029,2]
[424965079,1781358653000,-200.0,0.0002871,2]
[424965135,1781358653000,-227.71842302,0.00029,2]
[424965124,1781358653000,-10290.30071507,0.00029,2]
[424965107,1781358653000,-500.0,0.00028999,120]
[424965123,1781358653000,-2572.24816183,0.00029,2]
[424965109,1781358653000,-619.63,0.00028999,7]
[424965080,1781358653000,-4728.97,0.00028745,2]
[424965116,1781358653000,-2000.0,0.00029,2]
[424965084,1781358653000,-162.7741597,0.00028845,2]
[424965085,1781358653000,-500.0,0.00028855,2]
[424965087,1781358653000,-150.0,0.00028855,2]
[424965086,1781358653000,-150.0,0.00028855,2]
[424965089,1781358653000,-165.0,0.0002888,7]
[424965094,1781358653000,-672.52327601,0.00028973,2]
[424965091,1781358653000,-563.0,0.000289,2]
[424965090,1781358653000,-163.0,0.0002888,7]
[424965088,1781358653000,-5281.8671271,0.00028873,2]
[424965092,1781358653000,-501.0,0.00028941,12]
[424965093,1781358653000,-495.69,0.00028963,2]
[424965078,1781358653000,-1360.7820639,0.0002871,2]
[424965106,1781358653000,-591.96,0.00028999,30]
[424965104,1781358653000,-200.0,0.00028997,2]
[424965100,1781358653000,-171.52779351,0.00028973,2]
[424965099,1781358653000,-390.55221717,0.00028973,2]
[424965098,1781358653000,-352.49295593,0.00028973,2]
[424965097,1781358653000,-171.80397109,0.00028973,2]
[424965095,1781358653000,-360.7883393,0.00028973,2]
[424965102,1781358653000,-257.70595664,0.00028973,2]
[424965101,1781358653000,-6267.17231611,0.00028973,2]
[424965103,1781358653000,-304.29509038,0.00028973,2]
[424965105,1781358653000,-802.41,0.00028999,120]
[424965096,1781358653000,-387.07104939,0.00028973,2]
[424965172,1781358654000,-500.0,0.00029,2]
[424965173,1781358654000,-1197.66,0.00029,30]
[424965171,1781358654000,-941.38261542,0.00029,2]
[424965167,1781358654000,-218.32,0.00029,2]
[424965168,1781358654000,-195.04776913,0.00029,2]
[424965170,1781358654000,-226.35847443,0.00029,2]
[424965165,1781358654000,-200.0,0.00029,2]
[424965166,1781358654000,-200.0,0.00029,2]
[424965175,1781358654000,-892.0,0.00029,7]
[424965169,1781358654000,-195.04776913,0.00029,2]
[424965163,1781358654000,-200.0,0.00029,2]
[424965174,1781358654000,-500.0,0.00029,2]
[424965179,1781358654000,-500.0,0.00029,2]
[424965177,1781358654000,-216.029201,0.00029,30]
[424965181,1781358654000,-389.29491924,0.00029,2]
[424965180,1781358654000,-500.0,0.00029,2]
[424965182,1781358654000,-389.29491924,0.00029,2]
[424965178,1781358654000,-216.029201,0.00029,7]
[424965183,1781358654000,-500.0,0.00029,2]
[424965185,1781358654000,-1944.08277,0.00029,2]
[424965187,1781358654000,-500.0,0.00029,2]
[424965184,1781358654000,-1944.08278,0.00029,2]
[424965188,1781358654000,-1578.0,0.00029,2]
[424965186,1781358654000,-1944.08277,0.00029,2]
[424965176,1781358654000,-500.0,0.00029,2]
[424965164,1781358654000,-200.0,0.00029,2]
[424965137,1781358654000,-500.0,0.00029,2]
[424965157,1781358654000,-200.0,0.00029,2]
[424965191,1781358654000,-200.0,0.00029,2]
[424965138,1781358654000,-500.0,0.00029,2]
[424965136,1781358654000,-500.0,0.00029,2]
[424965139,1781358654000,-500.0,0.00029,2]
[424965144,1781358654000,-500.0,0.00029,2]
[424965145,1781358654000,-500.0,0.00029,2]
[424965143,1781358654000,-500.0,0.00029,2]
[424965142,1781358654000,-500.0,0.00029,2]
[424965141,1781358654000,-199.50067409,0.00029,2]
[424965148,1781358654000,-500.0,0.00029,2]
[424965150,1781358654000,-236.57079408,0.00029,2]
[424965140,1781358654000,-500.0,0.00029,2]
[424965146,1781358654000,-262.85643787,0.00029,2]
[424965149,1781358654000,-12902.0,0.00029,2]
[424965147,1781358654000,-500.0,0.00029,2]
[424965152,1781358654000,-200.0,0.00029,2]
[424965151,1781358654000,-236.57079409,0.00029,2]
[424965154,1781358654000,-200.0,0.00029,2]
[424965158,1781358654000,-200.0,0.00029,2]
[424965153,1781358654000,-200.0,0.00029,2]
[424965161,1781358654000,-200.0,0.00029,2]
[424965155,1781358654000,-200.0,0.00029,2]
[424965156,1781358654000,-200.0,0.00029,2]
[424965159,1781358654000,-200.0,0.00029,2]
[424965160,1781358654000,-200.0,0.00029,2]
[424965162,1781358654000,-200.0,0.00029,2]
[424965189,1781358654000,-500.0,0.00029,2]
[424965243,1781358654000,-480.74558183,0.00029465,7]
[424965192,1781358654000,-500.0,0.00029,2]
[424965224,1781358654000,-157.13,0.00029194,2]
[424965222,1781358654000,-454.60166567,0.0002919,2]
[424965221,1781358654000,-495.69,0.00029159,2]
[424965226,1781358654000,-151.0,0.00029194,2]
[424965228,1781358654000,-151.0,0.00029195,2]
[424965227,1781358654000,-267.28,0.00029195,2]
[424965229,1781358654000,-151.0,0.00029195,2]
[424965225,1781358654000,-151.0,0.00029194,2]
[424965231,1781358654000,-151.0,0.00029207,2]
[424965230,1781358654000,-151.0,0.00029199,2]
[424965232,1781358654000,-272.0,0.00029271,2]
[424965239,1781358654000,-151.06840969,0.00029435,3]
[424965233,1781358654000,-200.0,0.00029287,2]
[424965235,1781358654000,-181.0,0.00029369,120]
[424965236,1781358654000,-150.0,0.00029372,2]
[424965234,1781358654000,-495.69,0.00029354,2]
[424965237,1781358654000,-366.83087782,0.00029435,3]
[424965238,1781358654000,-154.62357399,0.00029435,3]
[424965240,1781358654000,-167.37952165,0.00029435,3]
[424965241,1781358654000,-4612.76191013,0.00029435,3]
[424965242,1781358654000,-520.12,0.00029445,6]
[424965244,1781358654000,-618.6416391,0.00029465,7]
[424965245,1781358654000,-506.83487224,0.00029465,7]
[424965247,1781358654000,-203.02214875,0.00029465,7]
[424965193,1781358654000,-250.0,0.00029,2]
[424965223,1781358654000,-151.32,0.00029194,2]
[424965220,1781358654000,-212.0,0.00029133,30]
[424965246,1781358654000,-549.21873109,0.00029465,7]
[424965218,1781358654000,-333.0,0.00029133,30]
[424965219,1781358654000,-1784.0,0.00029133,30]
[424965194,1781358654000,-518.11125959,0.00029,2]
[424965197,1781358654000,-1000.0,0.00029,2]
[424965195,1781358654000,-500.0,0.00029,20]
[424965198,1781358654000,-1000.0,0.00029,2]
[424965199,1781358654000,-1002.86772,0.00029,2]
[424965206,1781358654000,-601.3,0.000291,2]
[424965203,1781358654000,-170.18,0.000291,4]
[424965200,1781358654000,-150.0,0.00029,2]
[424965201,1781358654000,-2808.57,0.00029053,10]
[424965202,1781358654000,-200.0,0.00029066,2]
[424965196,1781358654000,-1000.0,0.00029,2]
[424965190,1781358654000,-350.0,0.00029,30]
[424965205,1781358654000,-601.29,0.000291,2]
[424965208,1781358654000,-160.0,0.00029129,30]
[424965209,1781358654000,-182.0,0.00029129,30]
[424965207,1781358654000,-315.0,0.00029129,30]
[424965210,1781358654000,-223.0,0.00029131,30]
[424965212,1781358654000,-578.0,0.00029131,30]
[424965211,1781358654000,-173.0,0.00029131,30]
[424965215,1781358654000,-152.0,0.00029131,30]
[424965216,1781358654000,-494.0,0.00029131,30]
[424965217,1781358654000,-187.0,0.00029131,30]
[424965213,1781358654000,-1178.0,0.00029131,30]
[424965214,1781358654000,-312.0,0.00029131,30]
[424965204,1781358654000,-403.83,0.000291,2]
[424965283,1781358655000,-496.5790067,0.00029468,7]
[424965284,1781358655000,-494.05785594,0.00029468,5]
[424965282,1781358655000,-353.45329022,0.00029468,2]
[424965279,1781358655000,-500.0,0.00029468,2]
[424965277,1781358655000,-835.86878024,0.00029468,7]
[424965278,1781358655000,-470.57780546,0.00029468,7]
[424965280,1781358655000,-499.7618094,0.00029468,7]
[424965285,1781358655000,-482.84656588,0.00029468,5]
[424965286,1781358655000,-351.97055243,0.00029468,2]
[424965281,1781358655000,-310.30066638,0.00029468,7]
[424965290,1781358655000,-232.40750546,0.00029468,7]
[424965294,1781358655000,-574.6089813,0.00029468,7]
[424965289,1781358655000,-311.53820229,0.00029468,2]
[424965288,1781358655000,-389.6785586,0.00029468,7]
[424965295,1781358655000,-484.02720889,0.00029468,7]
[424965287,1781358655000,-452.80577407,0.00029468,7]
[424965291,1781358655000,-577.39364053,0.00029468,7]
[424965293,1781358655000,-531.55399046,0.00029468,7]
[424965296,1781358655000,-223.82122667,0.00029468,7]
[424965297,1781358655000,-441.14913274,0.00029468,7]
[424965302,1781358655000,-345.68079418,0.00029468,7]
[424965298,1781358655000,-410.92829829,0.00029468,7]
[424965276,1781358655000,-614.67258755,0.00029468,7]
[424965292,1781358655000,-461.10829638,0.00029468,7]
[424965275,1781358655000,-756.69147405,0.00029468,7]
[424965261,1781358655000,-467.66596155,0.00029468,7]
[424965273,1781358655000,-558.65612709,0.00029468,7]
[424965301,1781358655000,-353.03606512,0.00029468,2]
[424965251,1781358655000,-438.45896373,0.00029468,2]
[424965248,1781358655000,-160.06722887,0.00029465,7]
[424965249,1781358655000,-507.46203456,0.00029465,7]
[424965250,1781358655000,-462.97815106,0.00029465,7]
[424965252,1781358655000,-775.4783256,0.00029468,2]
[424965253,1781358655000,-151.0,0.00029468,2]
[424965254,1781358655000,-150.85547736,0.00029468,7]
[424965255,1781358655000,-228.86632914,0.00029468,7]
[424965256,1781358655000,-200.85507384,0.00029468,7]
[424965257,1781358655000,-283.562939,0.00029468,7]
[424965258,1781358655000,-284.3040931,0.00029468,7]
[424965259,1781358655000,-233.49665667,0.00029468,7]
[424965260,1781358655000,-245.06560329,0.00029468,7]
[424965262,1781358655000,-213.867149,0.00029468,7]
[424965263,1781358655000,-225.64017706,0.00029468,7]
[424965265,1781358655000,-221.84390347,0.00029468,7]
[424965270,1781358655000,-608.57896189,0.00029468,7]
[424965268,1781358655000,-173.73494006,0.00029468,7]
[424965266,1781358655000,-165.31350154,0.00029468,7]
[424965269,1781358655000,-505.98271852,0.00029468,7]
[424965267,1781358655000,-215.39919391,0.00029468,7]
[424965271,1781358655000,-592.61603714,0.00029468,7]
[424965272,1781358655000,-174.92467267,0.00029468,7]
[424965264,1781358655000,-225.80186222,0.00029468,7]
[424965274,1781358655000,-522.96473289,0.00029468,7]
[424965307,1781358655000,-468.29822507,0.00029468,7]
[424965303,1781358655000,-358.59923574,0.00029468,2]
[424965299,1781358655000,-347.47914688,0.00029468,7]
[424965335,1781358655000,-500.0,0.00029548,60]
[424965336,1781358655000,-535.43324652,0.00029548,60]
[424965331,1781358655000,-459.88123643,0.00029473,7]
[424965339,1781358655000,-497.30480127,0.00029583,120]
[424965337,1781358655000,-495.69,0.0002955,2]
[424965340,1781358655000,-150.0,0.00029589,2]
[424965338,1781358655000,-200.0,0.0002958,2]
[424965341,1781358655000,-350.0,0.00029653,14]
[424965342,1781358655000,-282.3219466,0.00029656,7]
[424965351,1781358655000,-243.3648404,0.00029719,7]
[424965346,1781358655000,-243.8363503,0.00029679,7]
[424965334,1781358655000,-239.49646641,0.00029533,7]
[424965352,1781358655000,-495.69,0.00029746,2]
[424965345,1781358655000,-501.0,0.00029671,12]
[424965348,1781358655000,-212.05884244,0.00029718,7]
[424965349,1781358655000,-248.78496603,0.00029719,7]
[424965347,1781358655000,-238.95473346,0.00029679,7]
[424965344,1781358655000,-295.487039,0.00029669,7]
[424965350,1781358655000,-215.44994373,0.00029719,7]
[424965354,1781358655000,-520.12,0.00029865,9]
[424965353,1781358655000,-681.0,0.00029812,2]
[424965355,1781358655000,-200.0,0.00029876,2]
[424965306,1781358655000,-498.91441644,0.00029468,7]
[424965357,1781358655000,-1272.22261964,0.0002988,2]
[424965343,1781358655000,-229.20662537,0.00029669,7]
[424965333,1781358655000,-226.49538561,0.00029533,7]
[424965356,1781358655000,-497.30480127,0.00029879,120]
[424965326,1781358655000,-476.31034153,0.00029469,7]
[424965332,1781358655000,-636.68317904,0.00029473,7]
[424965304,1781358655000,-337.24003181,0.00029468,7]
[424965305,1781358655000,-482.90435318,0.00029468,7]
[424965308,1781358655000,-474.58834871,0.00029468,7]
[424965310,1781358655000,-486.71283101,0.00029468,7]
[424965309,1781358655000,-483.22506614,0.00029468,7]
[424965312,1781358655000,-576.06228696,0.00029469,7]
[424965317,1781358655000,-552.50355894,0.00029469,7]
[424965311,1781358655000,-568.53786923,0.00029469,7]
[424965313,1781358655000,-607.15368462,0.00029469,7]
[424965315,1781358655000,-571.72901229,0.00029469,7]
[424965318,1781358655000,-515.61278529,0.00029469,7]
[424965300,1781358655000,-459.70769404,0.00029468,7]
[424965314,1781358655000,-521.58638509,0.00029469,7]
[424965316,1781358655000,-530.45086576,0.00029469,7]
[424965329,1781358655000,-555.52793983,0.00029473,7]
[424965327,1781358655000,-551.01336242,0.00029473,7]
[424965325,1781358655000,-451.6889,0.00029469,7]
[424965330,1781358655000,-451.63088329,0.00029473,7]
[424965328,1781358655000,-455.25057047,0.00029473,2]
[424965319,1781358655000,-475.17910396,0.00029469,7]
[424965324,1781358655000,-465.89028998,0.00029469,7]
[424965322,1781358655000,-510.49142329,0.00029469,7]